Cogmind - Beta 10.2 @@@ ROGUE MODE // 2020.11.09 @ 18:31:17 Player: Michael Result: Self-destructed Performance ------------- Evolutions (7) 3500 Regions Visited (14) 2800 Robots Destroyed (52) 260 Value Destroyed (1752) 1752 Prototype IDs (24) 480 Alien Tech Used (0) 0 Bonus (300) 300 TOTAL SCORE: 9092 Bonus ------- Aligned with FarCom 300 Cogmind --------- Core Integrity 18/1300 Matter 181/300 Energy 100/100 System Corruption 7% Temperature Cool (0) Movement Core (50) Location -3/Research Parts ------- > --- POWER (2) -------- (None) > --- PROPULSION (4) --- (None) > --- UTILITY (11) ----- Enhanced Optical Array Advanced Signal Interpreter Advanced Terrain Scan Processor Improved Targeting Computer Improved Hacking Suite Improved Hacking Suite > --- WEAPON (4) ------- (None) > --- INVENTORY (4) ---- Micro Nuclear Core Medium Storage Unit Cloak of Protection Peak State ------------ > --- POWER ------------ Antimatter Reactor Antimatter Reactor > --- PROPULSION ------- Armored Wheel Armored Huge Wheel > --- UTILITY ---------- High-capacity Storage Unit High-capacity Storage Unit High-capacity Storage Unit Enhanced Optical Array Advanced Signal Interpreter Advanced Terrain Scan Processor Improved Targeting Computer Cloak of Protection Improved Hacking Suite Improved Hacking Suite > --- WEAPON ----------- EM Pulse Cannon Heavy Machine Gun Hypervelocity Coil Gun Great Axe > --- INVENTORY -------- Micro Nuclear Core Micro Nuclear Core Light Fission Core Micro Fission Core Wheel Medium Storage Unit High-capacity Storage Unit High-capacity Matter Pod High-capacity Matter Pod Matter Compressor Advanced Weight Redist. System Advanced Signal Interpreter Advanced Terrain Scanner Advanced Terrain Scanner Propulsion Shielding Hardened Light Armor Plating Improved Light Armor Plating Layered Light Armor Plating Reactive Plating Improved Hacking Suite Improved System Shield System Backup Module Improved EM Pulse Cannon Antimatter Cannon Antimatter Cannon Heavy Missile Launcher Great Axe [Rating: 85] Favorites ----------- Power Ion Engine Engine Ion Engine Power Core Light Fission Core Reactor Antimatter Reactor Propulsion Wheel Leg Aluminum Leg Wheel Wheel Utility High-capacity Storage Unit Device Cloak of Protection Storage High-capacity Storage Unit Processor Advanced Terrain Scan Processor Hackware Improved Hacking Suite Protection Propulsion Shielding Weapon Light Assault Rifle Energy Gun EM Pulse Gun Energy Cannon Improved EM Pulse Cannon Ballistic Gun Light Assault Rifle Ballistic Cannon Assault Cannon Launcher Mini Grenade Launcher Slashing Weapon Great Axe Build | -11 -10 -10 -10 -9 -8 -7 -7 -7 -6 -6 -6 -5 -4 -3 ------- Run | Scr Mat Min Exi Min Mat Fac Was Fac Fac Was Fac Fac Fac Res Slots Evolved 14 | . . . . . 4 2 . . 2 . . 2 2 2 Power 1 | . . . . . . . . . 1 . . . . . Propulsion 2 | . . . . . . 1 . . . . . . . 1 Utility 9 | . . . . . 2 1 . . 1 . . 2 2 1 Weapon 2 | . . . . . 2 . . . . . . . . . Parts Attached 170 | 6 8 1 7 . 17 28 2 4 4 1 48 14 16 14 Power 11 | 1 . . . . 1 1 . . 2 . 4 . 2 . Engine 4 | 1 . . . . 1 . . . 1 . 1 . . . Core 5 | . . . . . . 1 . . 1 . 3 . . . Reactor 2 | . . . . . . . . . . . . . 2 . Propulsion 17 | 2 1 . 2 . 2 3 2 1 . . 3 . 1 . Treads . | . . . . . . . . . . . . . . . Leg 3 | 2 1 . . . . . . . . . . . . . Wheel 14 | . . . 2 . 2 3 2 1 . . 3 . 1 . Hover . | . . . . . . . . . . . . . . . Flight . | . . . . . . . . . . . . . . . Utility 69 | 1 3 . 5 . 3 11 . 2 1 1 18 7 8 9 Device 30 | . . . . . 1 6 . 1 1 . 11 4 4 2 Storage 13 | 1 2 . 5 . 2 1 . . . . . . . 2 Processor 6 | . 1 . . . . . . 1 . . 1 . 2 1 Hackware 4 | . . . . . . . . . . . . 1 1 2 Protection 16 | . . . . . . 4 . . . 1 6 2 1 2 Artifact . | . . . . . . . . . . . . . . . Weapon 73 | 2 4 1 . . 11 13 . 1 1 . 23 7 5 5 Energy Gun 3 | 1 2 . . . . . . . . . . . . . Energy Cannon 17 | . . . . . 4 2 . . . . 8 2 1 . Ballistic Gun 21 | 1 . 1 . . 2 5 . 1 1 . 5 3 2 . Ballistic Cannon 6 | . 1 . . . 1 1 . . . . 2 . . 1 Launcher 7 | . 1 . . . 2 1 . . . . 2 1 . . Special Weapon . | . . . . . . . . . . . . . . . Impact Weapon . | . . . . . . . . . . . . . . . Slashing Weapon 19 | . . . . . 2 4 . . . . 6 1 2 4 Piercing Weapon . | . . . . . . . . . . . . . . . Special Melee Weapon . | . . . . . . . . . . . . . . . Unidentified Prototypes 1 | . . . . . . . . . . . . . . 1 Parts Lost 23 | . . . . . . 2 1 . . 1 6 . 4 9 Power 2 | . . . . . . . . . . . 1 . . 1 Propulsion 4 | . . . . . . . . . . . 1 . 2 1 Utility 6 | . . . . . . 2 . . . . . . . 4 Weapon 11 | . . . . . . . 1 . . 1 4 . 2 3 Highest Loss Streak 7 | . . . . . . 1 1 . . 1 2 . 3 7 Average Slot Usage (%) 94 | . 98 100 98 100 97 99 94 92 93 83 91 93 93 71 Engine 5 | . 14 14 14 14 9 6 . . 3 . 5 . . . Core 4 | . . . . . . . 7 7 8 9 6 11 4 . Leg 2 | . 28 28 . . . . . . . . . . . . Wheel 13 | . . . 28 28 18 23 23 15 13 13 13 11 9 3 Device 7 | . . . . . 9 7 7 7 13 8 6 10 9 6 Storage 20 | . 15 14 26 28 26 25 23 23 20 20 20 17 15 10 Processor 7 | . 11 14 . . . . . 7 6 6 11 11 15 19 Hackware 2 | . . . . . . . . . . . . 4 10 9 Energy Cannon 5 | . . . . . 8 3 7 7 6 6 9 5 3 2 Ballistic Gun 11 | . 14 22 28 28 18 15 9 15 13 7 7 4 6 2 Ballistic Cannon 1 | . 3 . . . 5 5 . . . . . . . . Slashing Weapon 5 | . . . . . 1 5 7 7 6 6 6 10 9 6 Naked Turns . | . . . . . . . . . . . . . . . Heaviest Build 157 | 12 16 16 71 71 98 126 114 115 134 134 141 138 157 149 Greatest Support 40 | 20 20 20 20 20 20 30 30 38 38 38 40 40 40 21 Greatest Overweight (x) 11 | . . . 3 3 4 4 11 3 3 3 3 3 7 7 Average Overweight (x) 2 | . . . 2 3 3 3 3 3 3 2 3 3 3 3 Largest Inventory Capacity 28 | 6 8 8 20 20 20 28 28 28 28 28 28 28 28 28 Average Capacity 24 | 5 6 8 17 20 20 27 28 28 28 28 28 28 28 22 Most Carried 28 | 4 7 8 16 18 20 28 28 28 28 26 28 28 28 25 Average Carried 22 | 2 5 7 13 17 19 24 26 27 27 26 26 27 27 19 Final Capacity 28 | 6 8 8 20 20 20 28 28 28 28 28 28 28 28 4 Final Carried 28 | 4 7 8 16 18 20 28 26 28 26 26 28 28 26 3 Class Distribution -------------------- 50% | Hauler-Assassin 20% | Hauler-Mutant 15% | Hauler-Skirmisher 10% | Mutant Dominant Class ---------------- Mutant | -10/Materials Mutant | -10/Mines Hauler-Mutant | -10/Exiles Hauler-Mutant | -9/Mines Hauler-Skirmisher | -8/Materials Hauler-Mutant | -7/Factory Hauler-Mutant | -7/Waste Hauler-Assassin | -7/Factory Hauler-Assassin | -6/Factory Hauler-Assassin | -6/Waste Hauler-Assassin | -6/Factory Hauler-Assassin | -5/Factory Hauler-Assassin | -4/Factory Hauler-Assassin | -3/Research Resources | -11 -10 -10 -10 -9 -8 -7 -7 -7 -6 -6 -6 -5 -4 -3 ----------- Run | Scr Mat Min Exi Min Mat Fac Was Fac Fac Was Fac Fac Fac Res Matter Collected 2784 | 206 219 27 . 59 357 537 . . 131 . 567 345 322 14 Remotely 206 | . . . . . . 95 . . . . 111 . . . Salvage Created 2540 | . 309 . . 25 401 563 . . . . 535 371 322 14 Parts 134 | . 21 . . 5 23 27 . . . . 34 13 11 . Haulers Intercepted 1 | . 1 . . . . . . . . . . . . . Recyclers Shooed 4 | . 1 . . . 1 . . . . . 1 1 . . Parts Field Recycled . | . . . . . . . . . . . . . . . Retrieved Matter . | . . . . . . . . . . . . . . . Parts Self-Destructed . | . . . . . . . . . . . . . . . Prevented . | . . . . . . . . . . . . . . . Kills | -11 -10 -10 -10 -9 -8 -7 -7 -7 -6 -6 -6 -5 -4 -3 ------- Run | Scr Mat Min Exi Min Mat Fac Was Fac Fac Was Fac Fac Fac Res Combat Hostiles Destroyed 26 | . 4 . . . 6 7 . . . . 6 2 1 . Guns 9 | . 2 . . . . 3 . . . . 3 1 . . Cannons 11 | . 1 . . . 5 2 . . . . 1 1 1 . AOE 4 | . 1 . . . 1 2 . . . . . . . . Classes Destroyed 12 | . 6 . . . 3 3 . . . . . . . . Worker 4 | . . . . . 1 2 . . . . . . . 1 Builder 6 | . . . . . . 2 . . . . 4 . . . Tunneler 4 | . 1 . . 1 . 1 . . . . 1 . . . Hauler 1 | . 1 . . . . . . . . . . . . . Recycler 8 | . 1 . . . 1 1 . . . . 1 2 2 . Mechanic 1 | . . . . . . 1 . . . . . . . . Operator 1 | . 1 . . . . . . . . . . . . . Watcher 1 | . 1 . . . . . . . . . . . . . Grunt 13 | . 4 . . . 3 5 . . . . . . 1 . Sentry 7 | . . . . . 2 1 . . . . 4 . . . Hunter 1 | . . . . . 1 . . . . . . . . . Programmer 5 | . . . . . . 1 . . . . 2 2 . . Best Kill Streak 4 | . 2 . . 1 3 4 . . . . 3 2 1 1 Combat Bots Only 3 | . 1 . . . 3 3 . . . . 1 1 1 . Max Kills in Single Turn 3 | . 1 . . 1 1 2 . . . . 3 1 1 1 Gunslinging . | . . . . . . . . . . . . . . . Exploded 1 | . 1 . . . 1 1 . . . . . . . . Melee . | . . . . . . . . . . . . . . . Uniques/NPCs Destroyed . | . . . . . . . . . . . . . . . Combat | -11 -10 -10 -10 -9 -8 -7 -7 -7 -6 -6 -6 -5 -4 -3 -------- Run | Scr Mat Min Exi Min Mat Fac Was Fac Fac Was Fac Fac Fac Res Damage Taken 5505 | . 115 109 . . 225 661 34 . 19 38 972 484 772 2076 Core 1533 | . 10 . . . 43 19 . . . . 73 19 87 1282 Absorbed by Shields . | . . . . . . . . . . . . . . . Core Remaining (%) 95 | 100 . . . 96 92 . . 97 . . 91 98 92 . Volleys Fired 119 | . 36 7 . 2 13 20 . . . . 28 9 4 . Largest 4 | . 2 2 . 2 4 4 . . . . 4 3 4 . Hottest 221 | . 60 60 . 40 202 158 . . . . 221 179 163 . Shots Fired 333 | . 72 14 . 4 47 69 . . . . 87 26 14 . Gun 197 | . 54 14 . 4 22 40 . . . . 37 16 10 . Cannon 125 | . 15 . . . 24 26 . . . . 48 8 4 . Launcher 11 | . 3 . . . 1 3 . . . . 2 2 . . Special . | . . . . . . . . . . . . . . . Kinetic 217 | . 51 9 . 4 32 53 . . . . 42 16 10 . Thermal 19 | . . . . . . . . . . . 13 6 . . Explosive 11 | . 3 . . . 1 3 . . . . 2 2 . . Electromagnetic 86 | . 18 5 . . 14 13 . . . . 30 2 4 . Robot Hit Streak 12 | . 11 6 . 3 11 5 . . . . 12 8 4 . Robot Miss Streak 7 | . 6 2 . 1 2 7 . . . . 4 2 3 . Penetration Max . | . . . . . . . . . . . . . . . Secondary Targets . | . . . . . . . . . . . . . . . Shots Hit Robots 228 | . 42 10 . 3 31 49 . . . . 60 18 12 3 Core Hits 104 | . 14 4 . 3 14 31 . . . . 24 7 6 1 Critical Hits 6 | . . . . . . . . . . . 2 3 1 . Critical Kills 1 | . . . . . . . . . . . . 1 . . Critical Parts Destroyed 5 | . . . . . . . . . . . 2 2 1 . Melee Attacks 128 | . . . . . 3 21 . 3 13 . 23 38 15 12 Impact . | . . . . . . . . . . . . . . . Slashing 128 | . . . . . 3 21 . 3 13 . 23 38 15 12 Piercing . | . . . . . . . . . . . . . . . Sneak Attacks 19 | . . . . . 2 7 . . . . 2 4 2 2 Combat Hostiles . | . . . . . . . . . . . . . . . Follow-up Attacks . | . . . . . . . . . . . . . . . Damage Inflicted 6462 | . 584 103 . 26 863 1656 . . . . 1556 865 505 304 Guns 1382 | . 312 103 . 26 102 162 . . . . 399 149 129 . Cannons 1868 | . 158 . . . 483 328 . . . . 701 96 102 . Explosions 771 | . 114 . . . 97 332 . . . . 169 59 . . Melee 2429 | . . . . . 181 834 . . . . 287 561 274 292 Ramming 12 | . . . . . . . . . . . . . . 12 Kinetic 1614 | . 301 49 . 26 190 294 . . . . 476 149 129 . Thermal 281 | . 41 . . . . . . . . . 178 62 . . Explosive 509 | . 73 . . . 97 178 . . . . 103 58 . . Electromagnetic 1617 | . 169 54 . . 395 350 . . . . 512 35 102 . Impact . | . . . . . . . . . . . . . . . Slashing 2429 | . . . . . 181 834 . . . . 287 561 274 292 Piercing . | . . . . . . . . . . . . . . . Highest Corruption 14 | . . . . . . 3 11 11 . 6 14 5 7 7 Average Corruption 8 | . . . . . . 2 9 11 . 6 10 2 3 4 Corruption Purged . | . . . . . . . . . . . . . . . Effects 105 | . . . . . . 3 5 13 . 4 73 3 1 3 Message Errors 18 | . . . . . . . . 2 . . 14 1 1 . Matter Fused 28 | . . . . . . 2 . 4 . 3 18 . . 1 Heat Flow Errors 4 | . . . . . . . . 1 . . 1 . . 2 Energy Discharges 10 | . . . . . . 1 2 1 . . 6 . . . Parts Rejected 2 | . . . . . . . . . . . 2 . . . Data Loss (minor) 9 | . . . . . . . 1 1 . 1 5 1 . . Data Loss (major) 4 | . . . . . . . 1 1 . . 2 . . . Misfires 1 | . . . . . . . . . . . 1 . . . Alerts 3 | . . . . . . . . 1 . . 2 . . . Misdirections 7 | . . . . . . . 1 1 . . 5 . . . Targeting Errors 15 | . . . . . . . . 1 . . 13 1 . . Weapon Failures 4 | . . . . . . . . . . . 4 . . . Overload Shots . | . . . . . . . . . . . . . . . Overflow Damage 799 | . 4 . . . 65 245 . . . . 99 199 . 187 Projectiles 8 | . 4 . . . 3 . . . . . 1 . . . Explosions 11 | . . . . . . 5 . . . . 6 . . . Melee 780 | . . . . . 62 240 . . . . 92 199 . 187 Knockbacks 1 | . 1 . . . . . . . . . . . . . Impact . | . . . . . . . . . . . . . . . Kinetic 1 | . 1 . . . . . . . . . . . . . Secondary . | . . . . . . . . . . . . . . . Self-Inflicted Damage 115 | . 61 . . . . 25 . . . . 23 . . 6 Shots 4 | . 2 . . . . 1 . . . . 1 . . . Rammed 1 | . . . . . . . . . . . . . . 1 Targets Rammed 1 | . . . . . . . . . . . . . . 1 Kicked . | . . . . . . . . . . . . . . . Crushed . | . . . . . . . . . . . . . . . Highest Temperature 377 | . 40 38 . . 327 324 . 240 . . 377 245 237 214 Average Temperature 115 | . 15 18 . . 138 133 . 132 . . 153 94 137 104 Received Heat Transfer 492 | . 30 27 . . 81 123 . . . . 162 . 33 36 Effects 13 | . . . . . 1 . . . . . 11 1 . . Shutdowns 2 | . . . . . . . . . . . 2 . . . Energy Bleed 3 | . . . . . . . . . . . 2 1 . . Interference 8 | . . . . . 1 . . . . . 7 . . . Siege Activations . | . . . . . . . . . . . . . . . Robots Corrupted 2 | . . . . . . . . . . . 2 . . . Combat Hostiles 2 | . . . . . . . . . . . 2 . . . Parts Fried 12 | . . . . . 2 2 . . . . 5 . 3 . Impact Corruptions . | . . . . . . . . . . . . . . . Robots Melted . | . . . . . . . . . . . . . . . Combat Hostiles . | . . . . . . . . . . . . . . . Parts Melted . | . . . . . . . . . . . . . . . Heat Transferred 350 | . . . . . . . . . . . 250 100 . . Parts Sabotaged . | . . . . . . . . . . . . . . . Parts Stolen . | . . . . . . . . . . . . . . . Parts Stripped . | . . . . . . . . . . . . . . . Power Chain Reactions 2 | . 1 . . . . . . . . . 1 . . . Missiles Intercepted . | . . . . . . . . . . . . . . . Alert | -11 -10 -10 -10 -9 -8 -7 -7 -7 -6 -6 -6 -5 -4 -3 ------- Run | Scr Mat Min Exi Min Mat Fac Was Fac Fac Was Fac Fac Fac Res Peak Influence 232 | . 229 51 . 5 128 232 40 24 30 28 108 168 143 59 Initial 81 | . . 51 . . 1 29 25 21 11 8 19 44 81 17 Average 49 | . 92 51 . 4 42 97 29 22 14 19 35 55 63 26 Maximum Alert Level 1 | . 1 . . . . 1 . . . . . . . . Low Security (%) 98 | 100 91 100 . 100 100 87 100 100 100 100 100 100 100 100 Level 1 1 | . 8 . . . . 12 . . . . . . . . Level 2 . | . . . . . . . . . . . . . . . Level 3 . | . . . . . . . . . . . . . . . Level 4 . | . . . . . . . . . . . . . . . Level 5 . | . . . . . . . . . . . . . . . High Security . | . . . . . . . . . . . . . . . Max Security . | . . . . . . . . . . . . . . . Squads Dispatched 18 | . 1 . . . 2 3 . . . . 4 3 2 3 Investigation 4 | . 1 . . . 2 1 . . . . . . . . Extermination 8 | . . . . . . 1 . . . . 3 2 1 1 Reinforcement 5 | . . . . . . 1 . . . . 1 . 1 2 Assault 1 | . . . . . . . . . . . . 1 . . Garrison . | . . . . . . . . . . . . . . . Intercept . | . . . . . . . . . . . . . . . Construction Impeded 2 | . . . . . . 1 . . . . 1 . . . Haulers Reinforced 1 | . . . . . . . . . . . . . 1 . Stealth | -11 -10 -10 -10 -9 -8 -7 -7 -7 -6 -6 -6 -5 -4 -3 --------- Run | Scr Mat Min Exi Min Mat Fac Was Fac Fac Was Fac Fac Fac Res Distress Signals 5 | . . . . . 3 . . . . . . 1 . 1 Communications Jammed . | . . . . . . . . . . . . . . . Distress Signals . | . . . . . . . . . . . . . . . Times Spotted 103 | . 17 3 . . 13 9 5 . 2 6 12 7 4 25 Peak Tracking Total 20 | . 3 2 . . 4 3 5 . 1 6 2 3 3 20 Tactical Retreats 6 | . 3 1 . . 2 . . . . . . . . . Traps | -11 -10 -10 -10 -9 -8 -7 -7 -7 -6 -6 -6 -5 -4 -3 ------- Run | Scr Mat Min Exi Min Mat Fac Was Fac Fac Was Fac Fac Fac Res Traps Triggered 10 | . . . . . 2 4 . . 2 . 1 1 . . Indirectly . | . . . . . . . . . . . . . . . Trap Hack Attempts . | . . . . . . . . . . . . . . . Triggered . | . . . . . . . . . . . . . . . Disarmed . | . . . . . . . . . . . . . . . Reprogrammed . | . . . . . . . . . . . . . . . Reused . | . . . . . . . . . . . . . . . Traps Extracted . | . . . . . . . . . . . . . . . Installed . | . . . . . . . . . . . . . . . Triggered . | . . . . . . . . . . . . . . . Exploded 1 | . . . . . 1 . . . . . . . . . Machines | -11 -10 -10 -10 -9 -8 -7 -7 -7 -6 -6 -6 -5 -4 -3 ---------- Run | Scr Mat Min Exi Min Mat Fac Was Fac Fac Was Fac Fac Fac Res Machines Disabled 14 | . 1 . . . . 9 . . . . 1 3 . . Max in Single Turn 4 | . 1 . . . . 4 . . . . 1 1 . . Garrison Access 3 | . . . . . . . . . 1 . . 2 . . Machines Sabotaged . | . . . . . . . . . . . . . . . Garrisons Compromised . | . . . . . . . . . . . . . . . Overloaded Fab Kills . | . . . . . . . . . . . . . . . Fab Network Shutdowns . | . . . . . . . . . . . . . . . Hacking | -11 -10 -10 -10 -9 -8 -7 -7 -7 -6 -6 -6 -5 -4 -3 --------- Run | Scr Mat Min Exi Min Mat Fac Was Fac Fac Was Fac Fac Fac Res Machines Accessed 54 | . 7 . 1 . 4 6 . 1 6 . 12 9 6 2 Terminals 32 | . 5 . . . 2 3 . . 4 . 8 3 6 1 Fabricators 3 | . . . . . . . . . . . 1 1 . 1 Repair Stations 3 | . . . . . . 2 . . . . . 1 . . Recycling Units 8 | . 2 . . . 1 1 . 1 1 . 1 1 . . Scanalyzers 2 | . . . . . 1 . . . . . . 1 . . Garrison Access 5 | . . . . . . . . . 1 . 2 2 . . Total Hacks 111 | . 16 . 1 . 7 13 . 2 11 . 23 21 12 5 Successful 60 | . 5 . 1 . 7 7 . 2 4 . 11 15 6 2 Failed 51 | . 11 . . . . 6 . . 7 . 12 6 6 3 Catastrophic 7 | . 2 . . . . 1 . . 2 . 2 . . . Database Lockouts . | . . . . . . . . . . . . . . . Manual 35 | . 10 . 1 . 2 3 . . 2 . 12 3 1 1 Terminals 62 | . 13 . . . 2 6 . . 7 . 17 4 12 1 Fabricators 7 | . . . . . . . . . . . 1 2 . 4 Repair Stations 7 | . . . . . . 5 . . . . . 2 . . Recycling Units 15 | . 3 . . . 1 2 . 2 3 . 2 2 . . Scanalyzers 12 | . . . . . 4 . . . . . . 8 . . Garrison Access 7 | . . . . . . . . . 1 . 3 3 . . Terminal Hacks 20 | . 4 . 1 . 1 2 . . 1 . 6 . 5 . Level Access Points 2 | . 1 . . . . . . . . . . . 1 . Branch Access Points 1 | . . . . . 1 . . . . . . . . . Emergency Access Points 2 | . 1 . . . . . . . . . . . 1 . Terminal Index 4 | . 1 . . . . 1 . . . . 1 . 1 . Unreport Threat 1 | . . . . . . . . . . . 1 . . . Locate Traps 5 | . 1 . . . . . . . 1 . 1 . 2 . Recall Extermination 1 | . . . . . . . . . . . 1 . . . Registered Components 1 | . . . . . . . . . . . 1 . . . Zone Layout 2 | . . . . . . 1 . . . . 1 . . . EX-Prototype ID Bank 1 | . . . 1 . . . . . . . . . . . Fabricator Hacks 4 | . . . . . . . . . . . . 2 . 2 Load Schematic 2 | . . . . . . . . . . . . 1 . 1 Build 2 | . . . . . . . . . . . . 1 . 1 Repair Station Hacks 6 | . . . . . . 4 . . . . . 2 . . Scan Component 3 | . . . . . . 2 . . . . . 1 . . Repair 3 | . . . . . . 2 . . . . . 1 . . Recycling Unit Hacks 7 | . . . . . 1 . . 2 1 . 2 1 . . Process 2 | . . . . . . . . 1 . . 1 . . . Retrieve Matter 2 | . . . . . . . . 1 . . 1 . . . Retrieve Components 3 | . . . . . 1 . . . 1 . . 1 . . Scanalyzer 12 | . . . . . 4 . . . . . . 8 . . Insert Component 5 | . . . . . 2 . . . . . . 3 . . Analyze 7 | . . . . . 2 . . . . . . 5 . . Garrison Access Hacks 2 | . . . . . . . . . 1 . . 1 . . Seal Access 2 | . . . . . . . . . 1 . . 1 . . Unauthorized Hacks 9 | . 1 . . . 1 1 . . 1 . 3 1 1 . Terminals 9 | . 1 . . . 1 1 . . 1 . 3 1 1 . Assimilate 4 | . . . . . 1 . . . . . 2 . 1 . Botnet 5 | . 1 . . . . 1 . . 1 . 1 1 . . Fabricators . | . . . . . . . . . . . . . . . Repair Stations . | . . . . . . . . . . . . . . . Recycling Units . | . . . . . . . . . . . . . . . Scanalyzers . | . . . . . . . . . . . . . . . Garrison Access . | . . . . . . . . . . . . . . . Data Cores Recovered . | . . . . . . . . . . . . . . . Used . | . . . . . . . . . . . . . . . Hacking Detections 43 | . 6 . . . 3 5 . . 5 . 11 6 5 2 Full Trace Events 1 | . 1 . . . . . . . . . . . . . Feedback Events . | . . . . . . . . . . . . . . . Feedback Blocked . | . . . . . . . . . . . . . . . Robot Schematics Acquired . | . . . . . . . . . . . . . . . Robots Built . | . . . . . . . . . . . . . . . Matter . | . . . . . . . . . . . . . . . Time . | . . . . . . . . . . . . . . . Total Robot Build Rating . | . . . . . . . . . . . . . . . Part Schematics Acquired 3 | . . . . . 1 . . . . . . 2 . . Parts Built 2 | . . . . . . . . . . . . 1 . 1 Matter 380 | . . . . . . . . . . . . 190 . 190 Time 126 | . . . . . . . . . . . . 95 . 31 Total Part Build Rating 10 | . . . . . . . . . . . . 5 . 5 Parts Repaired 2 | . . . . . . 1 . . . . . 1 . . Time 89 | . . . . . . 76 . . . . . 13 . . Parts Recycled . | . . . . . . . . . . . . . . . Recycled Matter 13 | . . . . . . . . 11 . . 2 . . . Retrieved Matter 13 | . . . . . . . . 11 . . 2 . . . Retrieved Components 11 | . . . . . 10 . . . . . . 1 . . Parts Scanalyzed 5 | . . . . . 2 . . . . . . 3 . . Part Schematics Acquired 3 | . . . . . 1 . . . . . . 2 . . Parts Damaged . | . . . . . . . . . . . . . . . Bothacking | -11 -10 -10 -10 -9 -8 -7 -7 -7 -6 -6 -6 -5 -4 -3 ------------ Run | Scr Mat Min Exi Min Mat Fac Was Fac Fac Was Fac Fac Fac Res Used RIF Installer . | . . . . . . . . . . . . . . . Robots Hacked . | . . . . . . . . . . . . . . . Non-combat . | . . . . . . . . . . . . . . . Combat . | . . . . . . . . . . . . . . . Robot Hacks Applied . | . . . . . . . . . . . . . . . Relay Couplers Released 2 | . . . . . . . . . . . . 2 . . Machine Destruction 2 | . . . . . . . . . . . . 2 . . Robots Rewired 1 | . . . . . . . . . . . . 1 . . Allies Hacked . | . . . . . . . . . . . . . . . Hacks Repelled . | . . . . . . . . . . . . . . . Allies | -11 -10 -10 -10 -9 -8 -7 -7 -7 -6 -6 -6 -5 -4 -3 -------- Run | Scr Mat Min Exi Min Mat Fac Was Fac Fac Was Fac Fac Fac Res Total Allies 4 | . . . . . 1 . . . . . 2 1 . . Largest Group 2 | . . . . . 1 . . . . . 1 2 . . Highest-Rated Group 55 | . . . . . 10 . . . . . 26 55 . . Highest-Rated Ally 29 | . . . . . 10 . . . . . 26 29 . . Total Orders . | . . . . . . . . . . . . . . . Ally Attacks 4 | . . . . . . . . . . . . 4 . . Total Damage 74 | . . . . . . . . . . . . 74 . . Kills . | . . . . . . . . . . . . . . . Allies Corrupted . | . . . . . . . . . . . . . . . Allies Melted . | . . . . . . . . . . . . . . . Intel | -11 -10 -10 -10 -9 -8 -7 -7 -7 -6 -6 -6 -5 -4 -3 ------- Run | Scr Mat Min Exi Min Mat Fac Was Fac Fac Was Fac Fac Fac Res Robot Analysis Total . | . . . . . . . . . . . . . . . Derelict Logs Recovered 1 | . . 1 . . . . . . . . . . . . Drone Launches . | . . . . . . . . . . . . . . . Drone Recoveries . | . . . . . . . . . . . . . . . Exploration | -11 -10 -10 -10 -9 -8 -7 -7 -7 -6 -6 -6 -5 -4 -3 ------------- Run | Scr Mat Min Exi Min Mat Fac Was Fac Fac Was Fac Fac Fac Res Turns Passed 8869 | 56 504 220 394 148 1291 871 107 290 746 108 1530 1447 769 388 Spaces Moved 6099 | 38 309 160 368 129 810 584 95 222 529 93 944 986 544 288 Core 140 | 6 . . . . . . . . . . . . . 134 Treads . | . . . . . . . . . . . . . . . Legs 501 | 32 309 160 . . . . . . . . . . . . Wheels 5458 | . . . 368 129 810 584 95 222 529 93 944 986 544 154 Hover . | . . . . . . . . . . . . . . . Flight . | . . . . . . . . . . . . . . . Fastest Speed 50 | 50 120 120 90 110 110 110 110 110 120 110 120 125 125 50 Average Speed 118 | 108 120 120 102 110 119 114 111 119 120 114 121 125 125 109 Slowest Speed 190 | 120 120 120 110 110 120 120 190 120 120 120 125 125 155 160 Overloaded Moves . | . . . . . . . . . . . . . . . Propulsion Burnouts . | . . . . . . . . . . . . . . . Robots Hopped . | . . . . . . . . . . . . . . . Cave-ins Triggered . | . . . . . . . . . . . . . . . Exploration Rate (%) 36 | 4 51 51 70 35 54 13 81 6 18 75 29 28 24 15 Regions Visited 14 Branch Regions 3 Pre-discovered Areas 1 | . . 1 . . . . . . . . . . . . Known Exits Taken 3 | . . . . . . . . . . . 1 1 1 . Unknown Exits Taken 7 | 1 1 1 1 1 1 . . 1 . . . . . . Scrap Searched 2 | . . 1 . 1 . . . . . . . . . . Spaces Dug 100 | . . . . . 1 7 . 3 13 . 33 26 11 6 Terrain Destroyed 157 | . 15 . . . 9 23 . 3 13 . 33 44 11 6 Melee 83 | . . . . . 1 7 . 3 13 . 16 26 11 6 Projectile 9 | . . . . . 3 4 . . . . . 2 . . AOE 65 | . 15 . . . 5 12 . . . . 17 16 . . Terrain Rammed . | . . . . . . . . . . . . . . . Walls Destroyed . | . . . . . . . . . . . . . . . Machines Disabled . | . . . . . . . . . . . . . . . Actions | -11 -10 -10 -10 -9 -8 -7 -7 -7 -6 -6 -6 -5 -4 -3 --------- Run | Scr Mat Min Exi Min Mat Fac Was Fac Fac Was Fac Fac Fac Res Total 7273 | 49 380 176 384 132 1107 703 96 242 624 94 1223 1118 594 351 Wait 605 | 2 15 8 . . 236 34 . 11 65 1 157 62 9 5 Move 6087 | 37 308 159 367 128 809 584 94 221 529 92 943 985 543 288 Hop . | . . . . . . . . . . . . . . . Pick Up 75 | 4 5 . 8 2 11 12 . 1 5 . 16 7 4 . Fast Attach 35 | 6 3 1 . . 8 3 . 1 1 . 6 2 2 2 Attach 29 | . . . 1 . 1 3 2 1 2 . 8 2 4 5 Detach 21 | . 2 1 1 . 4 1 . 2 1 . 2 . 1 6 Swap 106 | . 5 . 6 . 8 22 . 2 1 1 34 10 10 7 Drop 74 | . 6 . 1 . 14 3 . . 7 . 9 4 4 26 Fire 119 | . 36 7 . 2 13 20 . . . . 28 9 4 . Melee 117 | . . . . . 3 21 . 3 13 . 20 33 13 11 Ram 1 | . . . . . . . . . . . . . . 1 Kick . | . . . . . . . . . . . . . . . Crush . | . . . . . . . . . . . . . . . Escape Stasis . | . . . . . . . . . . . . . . . Rewire 4 | . . . . . . . . . . . . 4 . . Trap . | . . . . . . . . . . . . . . . Miscellaneous . | . . . . . . . . . . . . . . . Route ------- -11/Scrapyard -10/Materials (discovered 4 exits: Mat x3 / [*Min]) -10/Mines (discovered 2 exits: *Mat / *Exi) -10/Exiles -9/Mines -8/Materials (discovered 4 exits: *Fac x2 / *Sto x2) -7/Factory -7/Waste -7/Factory -6/Factory (discovered 3 exits: *Fac x3) -6/Waste -6/Factory (discovered 2 exits: *Fac / *Low) -5/Factory (discovered 3 exits: *Fac / *Upp / [Ext]) -4/Factory (discovered 4 exits: *Res x4) -3/Research History --------- Turn | Location | Event 4 | -11/Scrapyard | Discovered new exit (range 15) 57 | -11/Scrapyard | Entered Materials 310 | -10/Materials | Build established: Mutant 535 | -10/Materials | Discovered new exit (range 14) 538 | -10/Materials | Identified exit to Materials 561 | -10/Materials | Entered Mines 623 | -10/Mines | YI-UF0 nonchalantly dropped a Grenade Launcher on the ground 655 | -10/Mines | Learned location of Zion (-6) 756 | -10/Mines | Discovered exit to Materials (range 9) 777 | -10/Mines | Deemed a non-threat by the Exiles lab entrance 777 | -10/Mines | Discovered new exit (range 5) 781 | -10/Mines | Entered Exiles 813 | -10/Exiles | Met 8R-AWN 842 | -10/Exiles | Met EX-HEX 883 | -10/Exiles | Met EX-DEC 952 | -10/Exiles | Discovered new exit (range 14) 1014 | -10/Exiles | Met EX-BIN 1028 | -10/Exiles | Aligned with FarCom system 1029 | -10/Exiles | Given EX-Vault access code 1056 | -10/Exiles | Opened EX-Vault 1068 | -10/Exiles | Found Cloak of Protection 1091 | -10/Exiles | Warned to stay clear of 0b10 Research branches 1175 | -10/Exiles | Left Exiles lab with Cloak of Protection 1175 | -10/Exiles | Entered Mines 1209 | -9/Mines | Build established: Hauler-Mutant 1297 | -9/Mines | Discovered new exit (range 15) 1323 | -9/Mines | Entered Materials 1323 | -8/Materials | Evolved 4 slots: Utility x2, Weapon x2 1435 | -8/Materials | Discovered new exit (range 9) 1737 | -8/Materials | Build established: Hauler-Skirmisher 1823 | -8/Materials | Discovered new exit (range 16) 2237 | -8/Materials | Discovered new exit (range 16) 2279 | -8/Materials | Identified exit to Storage 2614 | -8/Materials | Entered Factory 2614 | -7/Factory | Evolved 2 slots: Propulsion x1, Utility x1 2693 | -7/Factory | Build established: Hauler-Mutant 3279 | -7/Factory | Repaired Assault Cannon 3318 | -7/Factory | Repaired Insulated Plating? 3485 | -7/Factory | Sucked down chute 3485 | -7/Factory | Entered Waste 3500 | -7/Waste | EMP discharged 3500 | -7/Waste | System corruption reached 10% 3507 | -7/Waste | Spotted C-40 Crusher 3524 | -7/Waste | Spotted C-40 Crusher 3525 | -7/Waste | Crushed by Compactor (1 part destroyed, 2 dropped) 3546 | -7/Waste | Spotted C-40 Crusher 3552 | -7/Waste | Spotted C-40 Crusher 3559 | -7/Waste | Spotted C-40 Crusher 3581 | -7/Waste | Discovered new exit (range 11) 3592 | -7/Waste | Entered Factory 3780 | -7/Factory | Discovered new exit (range 7) 3882 | -7/Factory | Entered another Factory area 3882 | -6/Factory | Evolved 2 slots: Power x1, Utility x1 3899 | -6/Factory | Discovered new exit (range 20) 3904 | -6/Factory | Build established: Hauler-Assassin 4371 | -6/Factory | Discovered new exit (range 15) 4610 | -6/Factory | Discovered new exit (range 17) 4628 | -6/Factory | Sucked down chute 4628 | -6/Factory | Entered Waste 4638 | -6/Waste | Spotted C-40 Crusher 4643 | -6/Waste | EMP discharged 4645 | -6/Waste | Spotted C-40 Crusher 4654 | -6/Waste | Spotted C-40 Crusher 4660 | -6/Waste | Spotted C-40 Crusher 4681 | -6/Waste | Crushed by Compactor (1 part destroyed, 2 dropped) 4684 | -6/Waste | Spotted C-40 Crusher 4684 | -6/Waste | Spotted C-40 Crusher 4723 | -6/Waste | Discovered new exit (range 13) 4736 | -6/Waste | Entered Factory 4797 | -6/Factory | Discovered new exit (range 12) 5108 | -6/Factory | Identified exit to Lower Caves 5369 | -6/Factory | System corruption reached 10% 5882 | -6/Factory | Discovered new exit (range 14) 6259 | -6/Factory | Identified exit to Factory 6266 | -6/Factory | Entered another Factory area 6266 | -5/Factory | Accompanied by 1 ally 6266 | -5/Factory | Evolved 2 slots: Utility x2 6316 | -5/Factory | Repaired Propulsion Shielding 6671 | -5/Factory | Discovered new exit (range 11) 6921 | -5/Factory | Discovered new exit (range 8) 6929 | -5/Factory | Identified exit to Upper Caves 7411 | -5/Factory | Fabricated Imp. Hacking Suite? 7657 | -5/Factory | Discovered new exit (range 19) 7677 | -5/Factory | Identified exit to Factory 7713 | -5/Factory | Entered another Factory area 7713 | -4/Factory | Evolved 2 slots: Utility x2 8101 | -4/Factory | Identified exit to Research 8482 | -4/Factory | Entered Research 8482 | -3/Research | Evolved 2 slots: Propulsion x1, Utility x1 8508 | -3/Research | Lost 3 parts (2n1w) 8796 | -3/Research | Core integrity fell below 50% 8823 | -3/Research | Lost 7 parts (1p1n3u2w) 8833 | -3/Research | Fabricated Imp. Hacking Suite? 8840 | -3/Research | Core integrity fell below 20% 8870 | -3/Research | Self-destructed Last Messages --------------- 08846_ Slug penetrates K-01 Serf. 08846_ K-01 Serf collects debris. 08846_ Imp. System Shield destroyed. 08847_ Slug penetrates T-07 Excavator. 08847_ T-07 Excavator destroyed. 08847_ Slug penetrates Wall. 08847_ Slug penetrates Door. 08848_ Slug penetrates Wall. 08849_ Penetrated by Slug. 08849_ K-01 Serf collects debris. 08855_ U-05 Engineer builds a Door. 08858_ Great Axe destroyed. 08859_ U-05 Engineer lays Concrete. 08861_ O-32 Director: "IFF HANDSHAKE FAILED. SECURING TERMINAL." 08863_ O-16 Technician: "IFF HANDSHAKE FAILED. SECURING TERMINAL." 08865_ Connecting with Terminal... 08865_ ALERT: Hostiles spotted, dispatching reinforcements to Terminal R016. 08869_ O-16 Technician destroyed. 08869_ K-01 Serf collects debris. Map ----- +----------------------------------------------------+ | ???????????????????????????# #?# | | ??????????????????????###### #?# | | ??????????????????????# #?# | | ??????????????????????# #?# | | ???????????###????????# ### #?# | | ???????????# ??????# ######+###########+#+#?## | | ???????????# ##### ## hh #????? ????? | | ???????????# ## #????? ????? | | ???????????# Y s+ """ #????"" ????? | | ???????????# ##### s## """ #????"" ????? | | ??????????????????????# ##! """ #????"" ????? | | ??????????????????????# #" #??? ????? | | ??????????????????????# s## #????! ! ????? | | ?????????????????????## ## #???? ????? | | ?????????????????????# ###########???? ????? | | ?????????????????????#p"" #?????????????? ????? | | ??????????g?g????????#s"T #???????????????" ???? | | ?????????????g???????#s #???????????????" ???? | | ?????????????????????## ##???????????????####???? | | ??????????????????????# s#???????????????????????? | | ??????????????????????# #???????????????????????? | | ??????????????????????# #???????????????????????? | | ????????????????????### ###?????????????????????? | | ????????????????????# ! #?????????????????????? | | ????????????????????#] k #?????????????????????? | | ????????????????????# %@ #?????????????????????? | | ????????????????????# T +?????????????????????? | | ????????????????????# #?????????????????????? | | ????????????????????# A #?????????????????????? | | ????????????????????## ##?????????????????????? | | ?????????????????????# #??????????????????????? | | ?????????????????????# #??????????????????????? | | ?????????????????????# ??????????????????????? | | ?????????????????????# ??????????????????????? | | ?????????????????????# ??????????????????????? | | ?????????????????????# ??????????????????????? | | ?????????????????????## * ??????????????????????? | | ??????????????????????# ??????????????????????? | | ??????????????????????# ?????????????????????? | | ??????????????????????######?????????????????????? | | ?????????????????????????????????????????????????? | | ?????????????????????????????????????????????????? | | ?????????????????????????????????????????????????? | | ?????????????????????????????????????????????????? | | ?????????????????????????????????????????????????? | | ?????????????????????????????????????????????????? | | ?????????????????????????????????????????????????? | | ?????????????????????????????????????????????????? | | ?????????????????????????????????????????????????? | | ?????????????????????????????????????????????????? | +----------------------------------------------------+ Best States ------------- Heat Dissipation 46 Energy Generation 37 Energy Capacity 550 Matter Stores 300 Matter Capacity 300 Sight Range 22 Terrain Scan Range 20 Terrain Scan Density 210 Cloak Strength 5 Additional Mass Support 9 Armor Coverage 150 Resistance: KI 20 Propulsion Shielding 33 Evasion (%) 50 Targeting Accuracy 6 Offensive Hacking 24 Defensive Hacking 12 Item Schematics ----------------- Insulated Plating | -8/Materials | Scanalyzed Mic. Fission Core | -5/Factory | Scanalyzed Imp. Hacking Suite | -5/Factory | Scanalyzed Robot Schematics ------------------ None Fabricated ------------ Imp. Hacking Suite | x1 | -5/Factory Imp. Hacking Suite | x1 | -3/Research Alien Tech Used ----------------- None Achievements -------------- None Challenges ------------ None Game ------ Seed RiotImpactWarhead Manual? 1 Play Time 03:42:14 Cumulative 251.1 hours Start 2020.11.08 @ 13:44:34 End 2020.11.09 @ 18:31:17 Sessions 5 Manual Loads 0 Difficulty Rogue Special Mode None Game No. 94 Rogue 58 Adventurer 36 Explorer 0 Win Type - Total 9 Types 9/0/0/0/0/0/0/0/0 Lore% 47 Gallery% 55 Achievement% 41 Wizard Run 0 Options --------- ASCII 0 Keyboard 1 Movement Vi Keybinds 0 Fullscreen 1 Font 18/Terminus Map View 76x50 Tactical HUD 1 Map Filters NONE Filters NONE Steam 0 RUN: 6312783f-4cc4-490b-937b-77f4ab17cc98